Cogmind - Beta 16 @@@ ROGUE MODE // 2025.12.28 @ 17:54:15 Player: AngelSpirit Result: Destroyed by X-72 Disruptor with Arc Projector Performance ------------- Evolutions (6) 3000 Regions Visited (22) 4400 Robots Destroyed (397) 1985 Value Destroyed (22789) 22789 Prototype IDs (73) 1460 Alien Tech Used (1) 200 Bonus (12530) 12530 TOTAL SCORE: 46364 Bonus ------- High Alert Combat Kills 5545 Follower Combat Kills 3004 Entered Garrisons 800 Used RIF Installer 2500 Network Hubs Disabled 200 Met Zhirov 300 Met R17 at Cetus 500 Friendly Fire -319 Cogmind --------- Core Integrity 0/1150 Matter 183/300 Energy 146/160 System Corruption 18% Temperature Cool (12) Movement Walking (95) Ox1 Location -4/Garrison Parts ------- > --- POWER (1) -------- Antimatter-Fission Reactor > --- PROPULSION (6) --- Shield-Antigrav Exoskeleton > --- UTILITY (8) ------ Armored Scrap Engine High-capacity Storage Unit Centrium Light Armor Plating Centrium Medium Armor Plating Graphene Brace Relay Coupler [Behemoth] (16) Improved System Guard > --- WEAPON (4) ------- Mini Smartbomb Launcher Improved Remote Datajack Hyp. Accelerated Rail Construct/G > --- INVENTORY (20) --- Advanced Heat Sink Matter Compressor (250) Precision Matter Filter Precision Energy Filter Improved Transmission Jammer Improved Hacking Suite Authchip [Weapon] Relay Coupler [NC] (51) Relay Coupler [Grunt] (39) Relay Coupler [Grunt] (30) Relay Coupler [Sentry] (30) Relay Coupler [Hunter] (27) Transdimensional Reconstructor Hypervelocity Gauss Cannon Rocket Array Mini Smartbomb Launcher Improved Plasma Cutter Peak State ------------ > --- POWER ------------ Antimatter-Fission Reactor > --- PROPULSION ------- Shield-Antigrav Exoskeleton > --- UTILITY ---------- Armored Scrap Engine High-capacity Storage Unit Advanced Signal Interpreter Precision Matter Filter Centrium Medium Armor Plating Improved Hacking Suite Relay Coupler [Grunt] > --- WEAPON ----------- Hyp. Accelerated Rail Construct/G > --- INVENTORY -------- Improved Deuterium Engine Advanced Cooling System Matter Compressor Advanced Sensor Array Precision Energy Filter Centrium Medium Armor Plating Centrium Medium Armor Plating Centrium Medium Armor Plating Authchip [Weapon] Relay Coupler [NC] Relay Coupler [Sentry] Relay Coupler [Hunter] Transdimensional Reconstructor Hypervelocity Gauss Cannon Hypervelocity Gauss Cannon Rocket Array Mini Smartbomb Launcher Mini Smartbomb Launcher Improved Remote Datajack Improved Plasma Cutter [Rating: 140] Favorites ----------- Power Constructs Engine Heavy Ion Engine Power Core Light Nuclear Core Reactor Constructs Propulsion Constructs Treads Light Treads Leg Constructs Wheel Wheel Hover Unit Aerolev Unit Flight Unit VTOL Module Utility Armored Scrap Engine Device Armored Scrap Engine Storage High-capacity Storage Unit Processor Improved Signal Interpreter Hackware Relay Coupler [Grunt] Protection Improved Medium Armor Plating Weapon Constructs Energy Gun EM Pulse Gun Energy Cannon Subdweller Beam Cannon Ballistic Gun Constructs Ballistic Cannon Advanced Assault Cannon Launcher Subdweller Shrapnel Launcher Special Weapon Improved Remote Datajack Slashing Weapon Plasma Sword Build | -11 -10 -10 -8 -8 -7 -7 -7 -5 -5 -5 -5 -5 -5 -4 -4 -4 -4 -4 -4 -4 -4 -4 ------- Run | Yrd Mat Sub Mat Gar Fac Sto Rec Fac Gar Fac Upp Upp Zhi Pro Fac Gar Fac Ext Cet Arc Hub Gar Slots Evolved 12 | . . . 4 . 2 . . 4 . . . . . . 2 . . . . . . . Power . | . . . . . . . . . . . . . . . . . . . . . . . Propulsion 4 | . . . 1 . . . . 2 . . . . . . 1 . . . . . . . Utility 6 | . . . 2 . 2 . . 1 . . . . . . 1 . . . . . . . Weapon 2 | . . . 1 . . . . 1 . . . . . . . . . . . . . . Parts Attached 219 | 6 15 22 18 12 10 18 8 12 13 16 2 2 1 3 4 16 14 7 2 1 14 3 Power 11 | 1 1 3 3 . 1 . 1 . . . . . . . . . . . . . 1 . Engine 9 | 1 1 2 2 . 1 . 1 . . . . . . . . . . . . . 1 . Core 2 | . . 1 1 . . . . . . . . . . . . . . . . . . . Reactor . | . . . . . . . . . . . . . . . . . . . . . . . Propulsion 32 | 2 4 7 4 2 4 4 3 . . . . . . . 2 . . . . . . . Treads 3 | . 3 . . . . . . . . . . . . . . . . . . . . . Leg 2 | . . . 1 . . . . . . . . . . . 1 . . . . . . . Wheel 25 | 2 1 7 2 2 4 4 3 . . . . . . . . . . . . . . . Hover 1 | . . . 1 . . . . . . . . . . . . . . . . . . . Flight 1 | . . . . . . . . . . . . . . . 1 . . . . . . . Utility 124 | 1 5 4 5 6 3 6 3 9 11 13 2 2 1 3 2 14 10 6 2 1 13 2 Device 38 | . . 2 2 . 1 . 2 3 . 8 1 . . 1 2 1 3 4 1 . 7 . Storage 9 | 1 3 . . . 1 1 . 1 . . . . . . . . 1 . . . 1 . Processor 10 | . 2 . 1 . . . . . . 1 . 1 . 1 . . 2 . . . 2 . Hackware 36 | . . . . 2 1 . . 3 10 2 1 1 . . . 10 3 1 . 1 . 1 Protection 31 | . . 2 2 4 . 5 1 2 1 2 . . 1 1 . 3 1 1 1 . 3 1 Artifact . | . . . . . . . . . . . . . . . . . . . . . . . Weapon 52 | 2 5 8 6 4 2 8 1 3 2 3 . . . . . 2 4 1 . . . 1 Energy Gun 8 | . 2 2 2 1 . 1 . . . . . . . . . . . . . . . . Energy Cannon 8 | . 2 3 . . 1 1 . 1 . . . . . . . . . . . . . . Ballistic Gun 14 | 2 . 3 4 1 . 3 . . . . . . . . . . 1 . . . . . Ballistic Cannon 2 | . . . . . 1 1 . . . . . . . . . . . . . . . . Launcher 7 | . 1 . . 1 . 2 . . 1 . . . . . . 1 1 . . . . . Special Weapon 11 | . . . . 1 . . 1 1 1 2 . . . . . 1 2 1 . . . 1 Impact Weapon . | . . . . . . . . . . . . . . . . . . . . . . . Slashing Weapon 2 | . . . . . . . . 1 . 1 . . . . . . . . . . . . Piercing Weapon . | . . . . . . . . . . . . . . . . . . . . . . . Special Melee Weapon . | . . . . . . . . . . . . . . . . . . . . . . . Unidentified Prototypes 27 | . . 1 4 . 3 6 1 2 . 4 . . 2 . . . 2 . 1 . . 1 Parts Lost 43 | . 2 7 . 7 4 . . 1 . 1 . . . 1 . 2 5 2 1 . 8 2 Power 3 | . . 1 . . 1 . . . . . . . . . . . . . . . 1 . Propulsion 11 | . 1 3 . 3 1 . . . . 1 . . . . . . 1 . . . 1 . Utility 23 | . . 1 . 3 1 . . 1 . . . . . 1 . 1 4 2 1 . 6 2 Weapon 6 | . 1 2 . 1 1 . . . . . . . . . . 1 . . . . . . Highest Loss Streak 7 | . 1 4 . 7 2 . . 1 . 1 . . . 1 . 1 3 2 1 . 3 1 To Critical Strikes . | . . . . . . . . . . . . . . . . . . . . . . . Average Backups 20 | . 10 22 22 23 24 24 24 19 19 19 18 18 19 18 18 19 19 19 19 19 19 18 Power 1 | . 1 4 3 4 3 2 1 1 1 1 1 1 1 1 1 1 1 1 1 1 . . Propulsion 1 | . 3 7 6 3 3 4 3 1 1 . . . . . . . . . . . . . Utility 10 | . 2 4 4 9 12 11 13 11 12 14 13 12 12 11 11 13 12 11 10 11 11 11 Weapon 4 | . 3 5 6 4 3 4 4 4 4 3 3 3 4 3 3 2 3 5 5 4 4 3 Tool/Special . | . . . . . . . . . . . . . . . . . . . . . . . Unused Backups 65 | . 1 10 6 5 2 5 3 5 2 3 . 1 1 . . 4 4 . . 1 . 12 Power 8 | . . . 3 1 2 1 . 1 . . . . . . . . . . . . . . Propulsion 10 | . . 5 . 1 . 1 . 2 . 1 . . . . . . . . . . . . Utility 27 | . . . . 2 . . 2 2 2 2 . 1 1 . . 3 3 . . . . 9 Weapon 18 | . 1 5 3 . . 3 1 . . . . . . . . 1 1 . . 1 . 2 Tool/Special 2 | . . . . 1 . . . . . . . . . . . . . . . . . 1 Average Slot Usage (%) 65 | . 96 99 92 81 85 86 64 52 54 57 57 57 57 57 55 55 56 55 51 52 51 51 Engine 2 | . 14 9 7 7 6 6 5 . . . . . . . . . . . . . . 1 Core 2 | . . 4 1 . . . . 4 4 4 5 5 5 5 5 4 1 . 5 5 1 . Reactor 1 | . . . . . . . . . . . . . . . . . 3 4 . . 3 2 Treads 1 | . 9 . . . . . . 2 5 3 5 5 5 . . . 1 . . 3 1 . Leg 2 | . . . 2 7 6 6 6 5 5 2 . . . . . . 1 . 5 1 2 4 Wheel 6 | . 16 27 24 20 17 18 7 . . . . . . . . . . 3 . . . . Device 8 | . . 6 8 . 8 8 6 9 5 11 17 16 16 11 13 6 9 9 10 10 11 20 Storage 6 | . 14 14 8 7 6 6 6 5 5 5 5 5 5 5 5 5 5 5 5 5 5 5 Processor 3 | . 12 . 7 3 . . . . . . 5 5 5 5 5 5 5 5 5 5 2 5 Hackware 7 | . . . . 1 9 12 12 4 13 14 3 5 5 5 5 11 13 10 10 10 9 . Protection 5 | . . 7 9 13 11 9 6 9 6 1 1 . . 4 5 5 1 4 3 5 6 5 Energy Cannon 3 | . 6 15 14 4 6 . 1 4 . 1 5 2 . . 2 4 1 . . 2 2 2 Ballistic Gun 3 | . 7 9 8 15 7 16 7 . . . . . . . . . . . . . . . Ballistic Cannon 2 | . . . . . 4 . 1 3 5 3 . 2 5 5 2 . 3 5 4 2 2 1 Special Weapon 2 | . . . . . . . . 1 4 5 4 4 5 3 . 4 4 3 . . . . Peak Build Rating 140 | 6 10 19 50 50 60 64 76 112 111 115 104 103 104 109 117 120 117 129 131 140 139 135 Average Rating 86 | 4 7 16 32 45 54 61 70 94 107 97 102 102 103 105 111 115 111 118 126 132 128 127 On Entrance 82 | . 6 10 19 50 45 58 62 75 105 111 101 103 103 104 106 117 115 117 112 131 126 126 Avg Prop Armor Cover (%) 6 | . . . 8 6 7 7 7 5 5 6 . . . . . . . . . . . . Naked Turns . | . . . . . . . . . . . . . . . . . . . . . . . Heaviest Build 122 | 11 89 108 116 115 118 114 122 112 78 81 89 85 77 98 95 100 88 117 106 110 114 103 Greatest Support 307 | 26 40 30 50 50 46 48 67 95 95 133 117 117 117 117 94 206 206 183 183 307 307 71 Greatest Overweight (x) 11 | . 4 8 11 3 5 3 6 2 . . . . . 1 1 1 1 1 . . 1 1 Average Overweight (x) . | . 1 2 2 1 2 2 2 . . . . . . . . . . . . . . . Largest Inventory Capacity 25 | 8 25 25 25 25 25 25 25 25 20 20 20 20 20 20 20 20 20 20 20 20 20 20 Average Capacity 21 | 6 13 25 25 25 25 25 25 20 20 20 20 20 20 20 20 20 20 20 20 20 20 20 Most Carried 25 | . 24 25 25 25 25 25 25 25 20 20 20 20 20 20 20 20 20 20 20 20 20 20 Average Carried 20 | . 10 23 23 23 24 24 24 20 19 19 19 19 19 19 19 19 19 19 19 19 19 18 Final Capacity 25 | 8 25 25 25 25 25 25 25 20 20 20 20 20 20 20 20 20 20 20 20 20 20 20 Final Carried 25 | . 24 25 25 25 25 25 25 20 20 18 20 20 20 20 20 20 20 20 20 20 17 17 Scrap Engine Consumption 298 | . . . . . . . 27 20 7 24 4 7 3 7 10 28 44 26 13 19 44 15 Constructs Created 6 | . . . . . . . 3 1 . . . . . . . . . . . . . 2 Constructs Modified 126 | . . . . . . . 4 11 3 11 3 2 . 3 3 14 18 14 5 8 23 4 Class Distribution -------------------- 53% | Bothacker-Construct 15% | Mutant 14% | Bothacker-Tank 5% | Botlord-Construct 4% | Bothacker-Mutant Dominant Class ---------------- Mutant | -10/Materials Mutant | -10/Subcaves Scavenger-Skirmisher | -8/Materials Bothacker-Tank | -8/Garrison Bothacker-Tank | -7/Factory Bothacker-Tank | -7/Storage Bothacker-Mutant | -7/Recycling Bothacker-Tank | -5/Factory Bothacker-Construct | -5/Garrison Bothacker-Construct | -5/Factory Bothacker-Construct | -5/Upper Caves Bothacker-Construct | -5/Upper Caves Bothacker-Construct | -5/Zhirov Bothacker-Construct | -4/Proximity Caves Bothacker-Construct | -4/Factory Bothacker-Construct | -4/Garrison Botlord-Construct | -4/Factory Bothacker-Construct | -4/Extension Bothacker-Construct | -4/Cetus Bothacker-Construct | -4/Archives Bothacker-Construct | -4/Hub_04(d) Construct | -4/Garrison Resources | -11 -10 -10 -8 -8 -7 -7 -7 -5 -5 -5 -5 -5 -5 -4 -4 -4 -4 -4 -4 -4 -4 -4 ----------- Run | Yrd Mat Sub Mat Gar Fac Sto Rec Fac Gar Fac Upp Upp Zhi Pro Fac Gar Fac Ext Cet Arc Hub Gar Matter Collected 13012 | 260 307 416 305 809 409 834 469 738 671 639 229 119 . 810 264 795 1456 1699 369 479 794 141 Remotely . | . . . . . . . . . . . . . . . . . . . . . . . Salvage Created 20561 | . 622 549 201 1008 389 490 76 762 1134 1603 869 432 . 642 282 1127 3173 2520 341 620 3211 510 Parts 901 | . 41 39 13 78 10 24 3 32 43 66 13 13 . 21 18 49 133 95 14 37 144 15 Haulers Intercepted 6 | . 2 . 1 . . . . . . . . . . 1 . . 2 . . . . . Recyclers Shooed 2 | . 1 . . . . . . . . . . . . . . . . 1 . . . . Parts Field Recycled . | . . . . . . . . . . . . . . . . . . . . . . . Retrieved Matter . | . . . . . . . . . . . . . . . . . . . . . . . Parts Self-Destructed 50 | . . 17 . . . . . . . . 9 6 . 18 . . . . . . . . Prevented 7 | . . . . . . . . . . . 5 2 . . . . . . . . . . Parts Restored . | . . . . . . . . . . . . . . . . . . . . . . . Kills | -11 -10 -10 -8 -8 -7 -7 -7 -5 -5 -5 -5 -5 -5 -4 -4 -4 -4 -4 -4 -4 -4 -4 ------- Run | Yrd Mat Sub Mat Gar Fac Sto Rec Fac Gar Fac Upp Upp Zhi Pro Fac Gar Fac Ext Cet Arc Hub Gar Combat Hostiles Destroyed 328 | . 11 10 2 28 4 7 2 11 16 27 13 8 . 13 11 20 43 34 5 4 47 12 Guns 37 | . 3 4 . 21 1 6 2 . . . . . . . . . . . . . . . Cannons 220 | . 2 4 2 4 3 1 . 11 14 27 5 . . 5 6 9 35 32 5 4 46 5 AOE 59 | . 6 2 . 3 . . . . 2 . 1 7 . 8 5 8 8 2 . . . 7 Classes Destroyed 23 | . 7 1 2 5 . . . 1 . 2 . . . . . 1 3 . . . . 1 Worker 7 | . . . 2 . 1 . . 1 . . . . . . . . . . . . 3 . Builder 6 | . . . . . . . . . . . . . . . . . 3 1 . . 2 . Tunneler 5 | . 2 . . . 1 . . . . 1 . . . . . . 1 . . . . . Hauler 6 | . 2 . 1 . . . . . . . . . . 1 . . 2 . . . . . Recycler 7 | . 1 . . . 2 1 . . . . . . . . . . 2 1 . . . . Operator 15 | . 2 . . . . . . . 1 1 . . . . . . 1 . . 9 1 . Watcher 14 | . 3 . 1 . . . . 2 . 2 . . . . . . 2 1 . . 3 . Swarmer 43 | . 3 . . 8 . . . 4 2 1 . 3 . 4 9 2 3 4 . . . . Cutter 3 | . . . . 3 . . . . . . . . . . . . . . . . . . Saboteur 2 | . . . . . . . . . . . . . . . . . 2 . . . . . Grunt 124 | . 8 2 1 3 2 2 . 3 7 12 3 4 . 8 . 6 19 19 . . 20 5 Brawler 9 | . . . . 1 . . . 1 1 1 1 . . 1 . . . 1 . . 1 1 Duelist 11 | . . . . 1 . . . . 1 2 2 . . . . . 3 . . . 2 . Protector 2 | . . . . . . . . . . 1 . . . . . . . . . . 1 . Sentry 49 | . . . 1 8 1 3 . 2 1 3 2 1 . . . 5 7 4 . 4 6 1 Demolisher 1 | . . . . . . . . . . 1 . . . . . . . . . . . . Specialist 5 | . . . . 1 . . . . . . 3 . . . . . 1 . . . . . Hunter 16 | . . . . . . . . 2 3 3 1 . . . 2 . . 3 . . 2 . Programmer 46 | . . . . 3 1 2 . . 3 3 1 . . . . 9 7 . . . 14 3 Heavy 1 | . . . . . . . . . . . . . . . . . 1 . . . . . Behemoth 4 | . . . . . . . . . . . . . . . . 1 . 2 . . 1 . Cetus Guard 5 | . . . . . . . . . . . . . . . . . . . 5 . . . Striker 2 | . . . . . . . . . . . . . . . . . . . . . . 2 Subdweller 10 | . . 8 . . . . 2 . . . . . . . . . . . . . . . Savage 1 | . . . . . . . . . . . . . . . . . . 1 . . . . Butcher 3 | . . . . 2 . . . . . . . . . . . . . 1 . . . . Best Kill Streak 17 | . 4 3 2 7 4 2 1 5 4 7 4 7 . 6 5 9 17 6 3 6 7 7 Combat Bots Only 12 | . 4 3 1 7 2 2 1 4 4 6 4 7 . 5 5 9 12 6 3 2 6 7 Max Kills in Single Turn 5 | . 2 1 2 3 2 1 1 2 2 2 1 3 . 3 3 4 5 2 1 2 2 4 Gunslinging . | . . . . . . . . . . . . . . . . . . . . . . . Exploded 4 | . 2 1 . 2 . . . . 2 . 1 3 . 3 3 3 4 2 . . . 4 Melee . | . . . . . . . . . . . . . . . . . . . . . . . Uniques/NPCs Destroyed . | . . . . . . . . . . . . . . . . . . . . . . . Combat | -11 -10 -10 -8 -8 -7 -7 -7 -5 -5 -5 -5 -5 -5 -4 -4 -4 -4 -4 -4 -4 -4 -4 -------- Run | Yrd Mat Sub Mat Gar Fac Sto Rec Fac Gar Fac Upp Upp Zhi Pro Fac Gar Fac Ext Cet Arc Hub Gar Hostile Shots Fired 1771 | . 58 36 2 108 76 83 18 57 58 54 36 24 . 48 36 115 193 188 32 18 427 104 Missed 538 | . 16 11 . 25 21 34 6 16 17 24 6 9 . 12 9 35 63 73 9 5 126 21 Hits 1233 | . 42 25 2 83 55 49 12 41 41 30 30 15 . 36 27 80 130 115 23 13 301 83 Melee 34 | . . . . 9 . . . . 1 . 3 . . . . . 3 5 . . 5 8 Projectile 1199 | . 42 25 2 74 55 49 12 41 40 30 27 15 . 36 27 80 127 110 23 13 296 75 AOE 12 | . . 8 . 2 . . . . . . . . . . . . 1 . . . 1 . Critical Strikes 65 | . 2 1 . 5 1 . . 2 1 . 1 1 . . 2 7 8 5 4 . 20 5 Actively Blocked 8 | . . . . . . . . . . . . . . . . . . . . . 3 5 Part Disruptions 3 | . . . . . . . . . 1 . . . . . . 2 . . . . . . Damage Taken 24387 | . 611 928 68 1254 499 373 156 753 698 692 571 269 . 706 497 1693 3191 2023 675 325 6639 1766 Core 1850 | . 39 179 18 136 55 24 . 16 74 17 44 17 . 76 21 68 245 156 74 53 338 200 Absorbed by Shields 403 | . . . . . . . . . . . . . . . . 55 . 235 . . 44 69 Ignored by Resistances 148 | . . . . . . . . . . 15 . . . . . 133 . . . . . . Regen/Repaired (Parts) 9923 | . . . . 113 153 . 5 82 285 556 . 155 . 683 235 1072 1639 841 648 573 2271 612 Core Remaining (%) 69 | 100 . 12 . 72 . . 88 . . . . . . 75 . . . . . . . . Volleys Fired 1122 | . 56 38 10 63 30 35 9 52 99 82 29 13 4 20 19 73 140 90 21 33 167 39 Largest 3 | . 2 2 3 3 3 3 3 1 1 1 1 1 1 1 1 1 1 2 1 1 1 1 Hottest 208 | . 100 160 190 127 128 105 75 81 58 208 208 208 7 201 201 161 90 83 63 63 130 130 Shots Fired 1401 | . 105 70 28 139 69 87 23 52 99 82 30 12 4 20 19 73 139 91 21 33 167 38 Gun 325 | . 56 30 8 106 29 75 21 . . . . . . . . . . . . . . . Cannon 910 | . 44 37 20 26 37 4 1 45 76 62 24 6 . 13 14 43 121 83 21 33 167 33 Launcher 56 | . 5 3 . 5 . . . . 2 . 4 6 . 7 4 10 5 1 . . . 4 Special 110 | . . . . 2 3 8 1 7 21 20 2 . 4 . 1 20 13 7 . . . 1 Kinetic 809 | . 39 19 8 106 44 77 21 16 78 53 4 6 . 20 12 10 98 83 21 15 74 5 Thermal 391 | . 44 48 20 26 22 2 1 18 . 9 3 . . . 6 29 23 1 . 18 93 28 Explosive 25 | . 5 3 . 5 . . . . . . . . . . . 2 5 1 . . . 4 Electromagnetic 67 | . 17 . . . . . . 11 . . 21 6 . . . 12 . . . . . . Robot Hit Streak 22 | . 11 17 5 14 11 8 10 12 12 22 8 6 3 5 2 14 12 18 5 6 15 5 Robot Miss Streak 11 | . 5 2 3 11 4 4 2 3 3 2 3 2 1 2 5 3 5 7 2 2 5 2 Penetration Max 1 | . . . . . . . . 1 1 1 . . . . . . 1 1 1 1 1 . Secondary Targets 2 | . . . . 1 . 1 . . . . . . . . . . . . . . . . Max Gunslinging Chain 1 | . . . . 1 . 1 . . . . . . . . . . . . . . . . Shots Hit Robots 879 | . 58 41 14 76 43 45 16 35 58 68 18 9 3 13 6 45 88 70 13 23 114 23 Core Hits 544 | . 30 20 6 52 18 20 5 14 22 28 5 19 . 23 10 39 107 36 5 9 45 31 Critical Kills 5 | . . . 1 . . 1 . . . . . . . . . . . 1 . 1 1 . Critical Parts Destroyed 4 | . . . . . . 2 . . . . . . . . . . 1 1 . . . . Critical Strikes 11 | . . . 1 . . 3 . . . 2 . . . . . . 1 2 . 1 1 . Meltdown 2 | . . . 1 . . . . . . . . . . . . . . . . . 1 . Destroy 7 | . . . . . . 3 . . . . . . . . . . 1 2 . 1 . . Blast 2 | . . . . . . . . . . 2 . . . . . . . . . . . . Melee Attacks . | . . . . . . . . . . . . . . . . . . . . . . . Impact . | . . . . . . . . . . . . . . . . . . . . . . . Slashing . | . . . . . . . . . . . . . . . . . . . . . . . Piercing . | . . . . . . . . . . . . . . . . . . . . . . . Sneak Attacks . | . . . . . . . . . . . . . . . . . . . . . . . Combat Hostiles . | . . . . . . . . . . . . . . . . . . . . . . . Follow-up Attacks . | . . . . . . . . . . . . . . . . . . . . . . . Damage Inflicted 74017 | . 1437 1011 451 1699 889 811 262 2045 3445 4522 2213 1302 . 2125 1295 5769 11173 8426 1865 2827 15846 4604 Guns 3168 | . 511 281 93 961 333 727 262 . . . . . . . . . . . . . . . Cannons 61036 | . 295 554 358 376 556 84 . 2045 3114 4362 2138 551 . 1135 946 3596 8984 8234 1865 2827 15846 3170 Explosions 9804 | . 631 176 . 362 . . . . 331 160 75 751 . 990 349 2173 2189 183 . . . 1434 Melee . | . . . . . . . . . . . . . . . . . . . . . . . Ramming 9 | . . . . . . . . . . . . . . . . . . 9 . . . . Kinetic 42668 | . 317 160 93 961 638 757 262 1108 3445 3578 75 751 . 2125 802 1732 6739 8234 1865 1469 6986 571 Thermal 22083 | . 416 675 358 376 251 54 . 622 . 784 401 . . . 493 2557 2245 34 . 1358 8860 2599 Explosive 5573 | . 510 176 . 362 . . . . . 160 . . . . . 593 2189 149 . . . 1434 Electromagnetic 3684 | . 194 . . . . . . 315 . . 1737 551 . . . 887 . . . . . . Impact . | . . . . . . . . . . . . . . . . . . . . . . . Slashing . | . . . . . . . . . . . . . . . . . . . . . . . Piercing . | . . . . . . . . . . . . . . . . . . . . . . . Highest Corruption 27 | . 4 4 . 4 1 1 1 . 3 4 4 4 4 4 . 4 8 7 1 1 27 18 Average Corruption 3 | . 2 4 . 3 1 1 1 . 2 3 4 4 4 4 . 3 6 3 1 1 4 15 Corruption Purged 15 | . . . . . . . . . . . . . . . . . 8 7 . . . . Corruption Blocked . | . . . . . . . . . . . . . . . . . . . . . . . Effects 345 | . 1 43 . 14 11 6 6 . 19 28 19 20 4 34 . 17 57 17 2 2 30 15 Message Errors 77 | . 1 7 . 2 2 1 . . 2 12 5 5 3 7 . 4 18 2 . . 3 3 Matter Fused 97 | . . 12 . 2 4 1 . . 7 5 3 5 . 10 . 7 17 6 . . 12 6 Heat Flow Errors 39 | . . 4 . 3 . 2 1 . 2 2 2 2 . 5 . 1 9 2 . . 4 . Energy Discharges 40 | . . 7 . 2 1 2 . . 2 3 2 3 . 7 . . 2 1 1 2 3 2 Parts Rejected 5 | . . . . 1 1 . . . . . . . . 1 . . 1 . . . 1 . Parts Fused 5 | . . 2 . . . . . . 1 . . . . . . 1 1 . . . . . Data Loss (minor) 42 | . . 5 . 2 3 . 2 . 3 3 4 3 1 1 . 3 4 2 1 . 4 1 Data Loss (major) 21 | . . 1 . 1 . . 3 . 2 2 1 1 . 3 . 1 1 2 . . 1 2 Misfires 3 | . . 2 . . . . . . . . 1 . . . . . . . . . . . Alerts 12 | . . 2 . 1 . . . . . 1 1 . . . . . 3 2 . . 2 . Weapon Failures 4 | . . 1 . . . . . . . . . 1 . . . . 1 . . . . 1 Overload Shots . | . . . . . . . . . . . . . . . . . . . . . . . Overflow Damage 10546 | . 88 . . 10 6 . . 303 429 412 775 16 . 160 216 535 1893 1053 255 547 3331 517 Projectiles 10313 | . 26 . . 8 6 . . 303 429 331 775 . . 160 205 491 1891 1053 255 547 3331 502 Explosions 233 | . 62 . . 2 . . . . . 81 . 16 . . 11 44 2 . . . . 15 Melee . | . . . . . . . . . . . . . . . . . . . . . . . Knockbacks 92 | . . . . . 1 . . 2 11 8 . . . 2 . 1 18 20 1 . 28 . Impact . | . . . . . . . . . . . . . . . . . . . . . . . Kinetic 79 | . . . . . 1 . . 1 11 8 . . . 2 . 1 17 15 1 . 22 . Secondary 13 | . . . . . . . . 1 . . . . . . . . 1 5 . . 6 . Self-Inflicted Damage 943 | . 105 . . 43 . . . . . 58 26 14 . 35 35 336 291 . . . . . Shots 32 | . 3 . . 1 . . . . . 1 1 1 . 1 1 12 11 . . . . . Rammed . | . . . . . . . . . . . . . . . . . . . . . . . Targets Rammed 1 | . . . . . . . . . . . . . . . . . . 1 . . . . Kicked 1 | . . . . . . . . . . . . . . . . . . 1 . . . . Crushed . | . . . . . . . . . . . . . . . . . . . . . . . Highest Temperature 427 | . 222 222 347 427 283 98 170 238 234 360 195 142 . 196 198 421 344 281 131 96 352 216 Average Temperature 83 | . 73 61 111 118 105 39 47 67 42 108 93 72 . 109 97 106 61 27 47 35 102 83 Received Heat Transfer 4280 | . 312 144 21 207 111 93 24 27 75 129 54 90 . 123 9 130 914 342 9 9 1198 259 Effects 12 | . . . 1 2 2 . . . . . . . . . . . 2 1 . . 4 . Shutdowns 1 | . . . . . . . . . . . . . . . . . . . . . 1 . Energy Bleed 4 | . . . 1 1 . . . . . . . . . . . . 1 1 . . . . Interference 5 | . . . . . 2 . . . . . . . . . . . . . . . 3 . Matter Decay 1 | . . . . . . . . . . . . . . . . . 1 . . . . . Damage (minor) 1 | . . . . 1 . . . . . . . . . . . . . . . . . . Siege Activations 1 | . . . . . . . . . . . . . . . . . 1 . . . . . Total Turns 7 | . . . . . . . . . . . . . . . . . 7 . . . . . Longest Duration 7 | . . . . . . . . . . . . . . . . . 7 . . . . . Martial Activations . | . . . . . . . . . . . . . . . . . . . . . . . Shielding Activations . | . . . . . . . . . . . . . . . . . . . . . . . Robots Disrupted . | . . . . . . . . . . . . . . . . . . . . . . . Combat Hostiles . | . . . . . . . . . . . . . . . . . . . . . . . Robots Corrupted 13 | . . . . . . . . . . . 7 1 . . . 4 1 . . . . . Combat Hostiles 11 | . . . . . . . . . . . 7 1 . . . 3 . . . . . . Parts Fried 39 | . 1 . . . . 2 . 1 . . 20 5 . . . 5 5 . . . . . Impact Corruptions 4 | . . . . . . . . 2 . . . . . . . . 1 . . . 1 . Robots Melted 2 | . . . 1 . . . . . . . . . . . . . . . . . 1 . Combat Hostiles 1 | . . . . . . . . . . . . . . . . . . . . . 1 . Parts Melted 17 | . . 1 3 . 1 1 . 2 1 . 1 . . . . . 2 . . 1 4 . Heat Transferred 8765 | . 779 890 481 481 333 74 . 500 . 277 150 . . . 111 553 555 50 . 518 2348 665 Parts Sabotaged 3 | . . . . . . . . . . . . . . . . . . 2 . . 1 . Parts Stolen . | . . . . . . . . . . . . . . . . . . . . . . . Parts Stripped . | . . . . . . . . . . . . . . . . . . . . . . . Power Chain Reactions 2 | . 2 . . . . . . . . . . . . . . . . . . . . . Alert | -11 -10 -10 -8 -8 -7 -7 -7 -5 -5 -5 -5 -5 -5 -4 -4 -4 -4 -4 -4 -4 -4 -4 ------- Run | Yrd Mat Sub Mat Gar Fac Sto Rec Fac Gar Fac Upp Upp Zhi Pro Fac Gar Fac Ext Cet Arc Hub Gar Maximum Alert Level 4 | . . . . 2 1 . . 2 3 4 . . . . 1 4 4 4 3 2 3 3 Low Security (%) 30 | 100 100 . 100 26 53 100 100 6 3 . . . . . 42 . . . . . 22 . Level 1 12 | . . . . 15 46 . . 60 4 . . . . . 57 19 . . . 55 23 . Level 2 18 | . . . . 58 . . . 33 40 28 . . . . . 7 . 18 . 44 35 46 Level 3 28 | . . . . . . . . . 51 40 . . . . . 52 79 48 100 . 18 53 Level 4 9 | . . . . . . . . . . 31 . . . . . 20 20 33 . . . . Level 5 . | . . . . . . . . . . . . . . . . . . . . . . . High Security . | . . . . . . . . . . . . . . . . . . . . . . . Max Security . | . . . . . . . . . . . . . . . . . . . . . . . Peak Influence 1597 | . 196 . 98 677 354 59 40 495 1091 1291 . . . . 338 1443 1432 1597 988 467 867 874 Initial 876 | . . . . . 354 2 1 450 72 572 . . . . . 208 757 578 876 367 99 601 Average 530 | . 95 . 32 401 200 21 2 318 739 942 . . . . 189 846 916 992 928 386 455 687 Influence Increases 15003 | . 519 80 283 787 195 287 126 911 1179 2037 322 170 . 285 448 1375 1746 2001 232 192 1455 373 Destroy 0b10 Robot/C 7760 | . 220 40 140 560 80 140 . 300 480 820 280 160 . 260 220 680 960 1020 160 80 920 240 Destroy 0b10 Robot/NC 370 | . 50 . 20 . 25 5 . 20 5 35 . 10 . 5 . . 55 35 10 45 50 . Destroy Leader 1078 | . 60 10 34 20 30 50 . 66 50 128 10 . . 20 30 40 188 116 . . 206 20 Allied During Kill 1539 | . . . 27 14 . . . 41 127 615 2 . . . 5 153 27 478 34 11 . 5 Trap Triggered on 0b10 10 | . . . . . . . . . . 10 . . . . . . . . . . . . Successful Hack 565 | . 33 . 7 7 40 46 65 16 7 107 . . . . 44 14 75 98 . . 6 . Select Force Hacks 120 | . . . 30 . . . 60 . . . . . . . . . 30 . . . . . Disable Machine 615 | . 120 . 15 15 15 45 . . 45 105 . . . . 60 60 45 60 . 30 . . Anti-Garrison Action 700 | . . . . 100 . . . . 250 . . . . . . 300 . . . . . 50 Destroy Structure 1301 | . 36 . 10 41 5 1 1 18 155 142 . . . . 74 128 276 164 28 26 138 58 Advance Influence 450 | . . . . . . . . 450 . . . . . . . . . . . . . . Partial Spotted 15 | . . . . . . . . . . . . . . . . . 15 . . . . . Lose Combat Pursuer 480 | . . 30 . 30 . . . . 60 75 30 . . . 15 . 75 30 . . 135 . Influence Decreases 14129 | . 357 242 283 110 866 288 131 807 192 1941 894 522 263 285 150 230 2009 1616 879 825 881 358 Entered New Map 4843 | . . 78 . . 323 4 4 . 32 519 440 118 263 . . 90 686 602 689 551 186 258 Time Decay 5746 | . 337 144 207 . 340 263 127 362 . 542 434 404 . 275 130 . 618 534 180 254 595 . Search Patrol Dispatched 100 | . . . . . . . . 100 . . . . . . . . . . . . . . Lost Part 380 | . 20 20 . 70 40 . . 10 . 10 . . . 10 . 20 50 20 10 . 80 20 Lost Ally 1347 | . . . 76 40 50 21 . 60 160 270 20 . . . 20 120 80 310 . 20 20 80 Purge Threat 1713 | . . . . . 113 . . 275 . 600 . . . . . . 575 150 . . . . Squads Dispatched 67 | . 1 . 4 . 1 3 . 6 . 11 . . . . 1 . 16 10 . . 14 . Investigation 18 | . . . 3 . . 1 . 2 . 4 . . . . 1 . 4 2 . . 1 . Extermination 16 | . . . . . 1 2 . 2 . 2 . . . . . . 3 . . . 6 . Reinforcement 15 | . 1 . 1 . . . . 2 . 1 . . . . . . 3 4 . . 3 . Assault 17 | . . . . . . . . . . 4 . . . . . . 5 4 . . 4 . Garrison 1 | . . . . . . . . . . . . . . . . . 1 . . . . . Intercept . | . . . . . . . . . . . . . . . . . . . . . . . Searches Triggered 1 | . . . . . . . . 1 . . . . . . . . . . . . . . Construction Impeded 5 | . . . . . . . . 1 . . . . . . . . 1 3 . . . . Haulers Reinforced . | . . . . . . . . . . . . . . . . . . . . . . . Active Scanning Responses . | . . . . . . . . . . . . . . . . . . . . . . . Cargo Convoy Interrupts . | . . . . . . . . . . . . . . . . . . . . . . . Stealth | -11 -10 -10 -8 -8 -7 -7 -7 -5 -5 -5 -5 -5 -5 -4 -4 -4 -4 -4 -4 -4 -4 -4 --------- Run | Yrd Mat Sub Mat Gar Fac Sto Rec Fac Gar Fac Upp Upp Zhi Pro Fac Gar Fac Ext Cet Arc Hub Gar Distress Signals 17 | . 1 . 1 . . . 1 . . 2 . . . . 1 . 2 5 2 . 2 . Communications Jammed . | . . . . . . . . . . . . . . . . . . . . . . . Distress Signals . | . . . . . . . . . . . . . . . . . . . . . . . Times Spotted 564 | . 20 16 10 29 6 24 6 21 37 57 13 8 . 13 16 44 65 71 7 10 75 16 Peak Tracking Total 16 | . 5 2 4 8 2 7 2 5 7 6 5 4 . 5 5 7 10 16 5 1 14 15 Tactical Retreats 21 | . . 1 . 2 . . . . 3 2 1 . . . 1 . 3 1 . . 7 . Traps | -11 -10 -10 -8 -8 -7 -7 -7 -5 -5 -5 -5 -5 -5 -4 -4 -4 -4 -4 -4 -4 -4 -4 ------- Run | Yrd Mat Sub Mat Gar Fac Sto Rec Fac Gar Fac Upp Upp Zhi Pro Fac Gar Fac Ext Cet Arc Hub Gar Traps Triggered 19 | . 2 2 . 5 . 1 . . . 1 . . . . 1 5 . . . . 1 1 Indirectly . | . . . . . . . . . . . . . . . . . . . . . . . Trap Hack Attempts . | . . . . . . . . . . . . . . . . . . . . . . . Triggered . | . . . . . . . . . . . . . . . . . . . . . . . Disarmed . | . . . . . . . . . . . . . . . . . . . . . . . Reprogrammed . | . . . . . . . . . . . . . . . . . . . . . . . Reused . | . . . . . . . . . . . . . . . . . . . . . . . Traps Extracted . | . . . . . . . . . . . . . . . . . . . . . . . Installed . | . . . . . . . . . . . . . . . . . . . . . . . Triggered 1 | . . . . . . . . . . 1 . . . . . . . . . . . . Machines | -11 -10 -10 -8 -8 -7 -7 -7 -5 -5 -5 -5 -5 -5 -4 -4 -4 -4 -4 -4 -4 -4 -4 ---------- Run | Yrd Mat Sub Mat Gar Fac Sto Rec Fac Gar Fac Upp Upp Zhi Pro Fac Gar Fac Ext Cet Arc Hub Gar Machines Disabled 62 | . 8 1 1 2 1 3 . . 8 7 1 2 . . 4 11 3 6 . 2 . 2 Max in Single Turn 2 | . 1 1 . 1 1 1 . . 1 2 1 1 . . 2 2 1 2 . 1 . 1 Garrison Access 6 | . . . . . . 1 . . . 1 . . . . . . 3 . . . 1 . Garrison Relay 13 | . . . . 1 . . . . 5 . . . . . . 6 . . . . . 1 Network Hub 1 | . . . . . . . . . . . . . . . . . . . . . 1 . Energy Cycler 1 | . . . . . . . . . . . . . . . . . . 1 . . . . Machines Repaired . | . . . . . . . . . . . . . . . . . . . . . . . Machines Dismantled . | . . . . . . . . . . . . . . . . . . . . . . . Machines Sabotaged . | . . . . . . . . . . . . . . . . . . . . . . . Overloaded Fab Kills . | . . . . . . . . . . . . . . . . . . . . . . . Hacking | -11 -10 -10 -8 -8 -7 -7 -7 -5 -5 -5 -5 -5 -5 -4 -4 -4 -4 -4 -4 -4 -4 -4 --------- Run | Yrd Mat Sub Mat Gar Fac Sto Rec Fac Gar Fac Upp Upp Zhi Pro Fac Gar Fac Ext Cet Arc Hub Gar Machines Accessed 116 | . 6 2 6 3 7 5 11 9 2 17 . 3 4 . 3 3 22 8 1 . 4 . Terminals 66 | . 5 . 4 3 6 3 5 4 2 6 . . . . 1 3 13 7 1 . 3 . Fabricators 8 | . . . . . . . . 1 . 3 . . . . 1 . 3 . . . . . Repair Stations 4 | . . . . . . 1 . . . 2 . . . . . . 1 . . . . . Recycling Units 14 | . 1 . 1 . 1 . 4 2 . 2 . . . . . . 2 1 . . . . Scanalyzers 4 | . . . . . . . . 1 . 3 . . . . . . . . . . . . Garrison Access 9 | . . . 1 . . 1 . 1 . 1 . . . . 1 . 3 . . . 1 . Total Hacks 307 | . 20 5 14 6 19 10 30 25 4 39 . 9 17 . 9 7 54 21 3 . 15 . Successful 161 | . 9 5 6 2 9 6 12 11 2 22 . 9 17 . 6 1 29 8 . . 7 . Failed 146 | . 11 . 8 4 10 4 18 14 2 17 . . . . 3 6 25 13 3 . 8 . Catastrophic 29 | . 1 . 1 1 4 . 2 4 . 4 . . . . 1 2 3 4 1 . 1 . Database Lockouts . | . . . . . . . . . . . . . . . . . . . . . . . Manual 100 | . 14 . 8 2 5 2 13 11 1 11 1 . . . 3 . 20 4 . . 5 . Terminals 190 | . 19 . 9 6 16 5 14 17 4 19 . . . . 5 7 33 19 3 . 14 . Fabricators 14 | . . . . . . . . 2 . 5 . . . . 2 . 5 . . . . . Repair Stations 10 | . . . . . . 3 . . . 4 . . . . . . 3 . . . . . Recycling Units 34 | . 1 . 4 . 3 . 12 3 . 3 . . . . . . 6 2 . . . . Scanalyzers 8 | . . . . . . . . 2 . 6 . . . . . . . . . . . . Garrison Access 16 | . . . 1 . . 2 . 1 . 2 . . . . 2 . 7 . . . 1 . Terminal Hacks 79 | . 3 5 1 2 5 3 5 2 2 3 . 9 17 . 1 1 11 5 . . 4 . Record 18 | . . 4 . . . . 2 . . . . 7 5 . . . . . . . . . Part Schematic 12 | . . . . . . . 1 . . 1 . . 4 . . . 2 4 . . . . Robot Schematic 1 | . . . . . . 1 . . . . . . . . . . . . . . . . Robot Analysis 5 | . 1 . . . . . . . . . . . 4 . . . . . . . . . Prototype ID Bank 4 | . . . . . . . . . . . . . 4 . . . . . . . . . Open Door 6 | . . . . 1 . 1 . . 1 . . 2 . . . . 1 . . . . . Branch Access Points 5 | . . . 1 . 1 1 . . . . . . . . 1 . 1 . . . . . Emergency Access Points 1 | . . . . . . . . . 1 . . . . . . . . . . . . . Terminal Index 2 | . . . . . . . . . . . . . . . . . 1 . . . 1 . Alert Level 1 | . . . . . 1 . . . . . . . . . . . . . . . . . Unreport Threat 4 | . . . . . 1 . . . . 1 . . . . . . 2 . . . . . Locate Traps 6 | . 1 . . . . . . 1 . 1 . . . . . . 1 1 . . 1 . Recall Extermination 1 | . . . . . 1 . . . . . . . . . . . . . . . . . Recall Assault 1 | . . . . . . . . . . . . . . . . . 1 . . . . . Registered Components 4 | . . . . . 1 . . 1 . . . . . . . . 1 . . . 1 . Zone Layout 3 | . 1 . . . . . . . . . . . . . . . 1 . . . 1 . Garrison Registry 2 | . . . . 1 . . . . . . . . . . . 1 . . . . . . Proto ID Catalog 1 | . . 1 . . . . . . . . . . . . . . . . . . . . Release Object 2 | . . . . . . . 2 . . . . . . . . . . . . . . . Fabricator Hacks 10 | . . . . . . . . 2 . 3 . . . . 2 . 3 . . . . . Network Status 3 | . . . . . . . . . . 1 . . . . 1 . 1 . . . . . Load Schematic 3 | . . . . . . . . 1 . 1 . . . . . . 1 . . . . . Build 4 | . . . . . . . . 1 . 1 . . . . 1 . 1 . . . . . Repair Station Hacks 7 | . . . . . . 1 . . . 4 . . . . . . 2 . . . . . Scan Component 4 | . . . . . . 1 . . . 2 . . . . . . 1 . . . . . Repair 3 | . . . . . . . . . . 2 . . . . . . 1 . . . . . Recycling Unit Hacks 10 | . 1 . 1 . 1 . 2 1 . 2 . . . . . . 2 . . . . . Retrieve Components 10 | . 1 . 1 . 1 . 2 1 . 2 . . . . . . 2 . . . . . Scanalyzer 5 | . . . . . . . . 1 . 4 . . . . . . . . . . . . Insert Component 2 | . . . . . . . . . . 2 . . . . . . . . . . . . Analyze 1 | . . . . . . . . . . 1 . . . . . . . . . . . . Retrieve Study 2 | . . . . . . . . 1 . 1 . . . . . . . . . . . . Garrison Access Hacks 15 | . . . 1 . . 2 . 1 . 2 . . . . 2 . 6 . . . 1 . Unlock Access 4 | . . . 1 . . . . 1 . . . . . . 1 . . . . . 1 . Seal Access 5 | . . . . . . 1 . . . 1 . . . . . . 3 . . . . . Coupler Status 6 | . . . . . . 1 . . . 1 . . . . 1 . 3 . . . . . Unauthorized Hacks 35 | . 5 . 3 . 3 . 5 4 . 4 . . . . 1 . 5 3 . . 2 . Terminals 29 | . 5 . 2 . 1 . 3 4 . 4 . . . . 1 . 4 3 . . 2 . Botnet 26 | . 4 . 2 . 1 . 3 3 . 3 . . . . 1 . 4 3 . . 2 . Operators 3 | . 1 . . . . . . 1 . 1 . . . . . . . . . . . . Fabricators . | . . . . . . . . . . . . . . . . . . . . . . . Repair Stations . | . . . . . . . . . . . . . . . . . . . . . . . Recycling Units 6 | . . . 1 . 2 . 2 . . . . . . . . . 1 . . . . . Monitor 1 | . . . . . 1 . . . . . . . . . . . . . . . . . Recyclers 1 | . . . . . 1 . . . . . . . . . . . . . . . . . Tunnel 4 | . . . 1 . . . 2 . . . . . . . . . 1 . . . . . Scanalyzers . | . . . . . . . . . . . . . . . . . . . . . . . Garrison Access . | . . . . . . . . . . . . . . . . . . . . . . . Data Cores Recovered 1 | . . . . . . . . . . 1 . . . . . . . . . . . . Used 1 | . . . . . . . . . . 1 . . . . . . . . . . . . Hacking Detections 89 | . 5 . 4 2 6 4 8 7 2 15 . . . . 2 2 20 8 1 . 3 . Full Trace Events 20 | . . . 1 1 . . 7 2 . 3 . . . . . . 3 2 . . 1 . Feedback Events 1 | . . . . . . . . . . . . . . . . . . 1 . . . . Corruption 1 | . . . . . . . . . . . . . . . . . . 1 . . . . Feedback Blocked . | . . . . . . . . . . . . . . . . . . . . . . . Robot Schematics Acquired 1 | . . . . . . 1 . . . . . . . . . . . . . . . . Robots Built 6 | . . . . . . . . 3 . 3 . . . . . . . . . . . . Authchips 1 | . . . . . . . . 1 . . . . . . . . . . . . . . Time 134 | . . . . . . . . 67 . 67 . . . . . . . . . . . . Total Robot Build Rating 24 | . . . . . . . . 12 . 12 . . . . . . . . . . . . Part Schematics Acquired 12 | . . . . . . . 1 . . 1 . . 4 . . . 2 4 . . . . Parts Built 4 | . . . . . . . . . . . . . . . 2 . 2 . . . . . Authchips . | . . . . . . . . . . . . . . . . . . . . . . . Time 153 | . . . . . . . . . . . . . . . 58 . 95 . . . . . Total Part Build Rating 24 | . . . . . . . . . . . . . . . 14 . 10 . . . . . Part Studies Acquired 2 | . . . . . . . . 1 . 1 . . . . . . . . . . . . Parts Repaired 3 | . . . . . . . . . . 2 . . . . . . 1 . . . . . Time 104 | . . . . . . . . . . 54 . . . . . . 50 . . . . . Parts Recycled . | . . . . . . . . . . . . . . . . . . . . . . . Recycled Matter . | . . . . . . . . . . . . . . . . . . . . . . . Retrieved Matter . | . . . . . . . . . . . . . . . . . . . . . . . Retrieved Components 25 | . 6 . . . 3 . 1 . . 12 . . . . . . 3 . . . . . Parts Scanalyzed 2 | . . . . . . . . . . 2 . . . . . . . . . . . . Part Schematics Acquired . | . . . . . . . . . . . . . . . . . . . . . . . Parts Damaged . | . . . . . . . . . . . . . . . . . . . . . . . Bothacking | -11 -10 -10 -8 -8 -7 -7 -7 -5 -5 -5 -5 -5 -5 -4 -4 -4 -4 -4 -4 -4 -4 -4 ------------ Run | Yrd Mat Sub Mat Gar Fac Sto Rec Fac Gar Fac Upp Upp Zhi Pro Fac Gar Fac Ext Cet Arc Hub Gar Used RIF Installer 5 | . . . . 1 . . . . 1 . . . . . . 2 . . . . . 1 Coupler Efficiency 1 | . . . . . . . . . . . . . . . . 1 . . . . . . Command Fork 1 | . . . . . . . . . . . . . . . . . . . . . . 1 Robot Detection 1 | . . . . . . . . . . . . . . . . 1 . . . . . . Structural Interface 1 | . . . . . . . . . 1 . . . . . . . . . . . . . Robots Hacked 79 | . . . . 1 3 6 1 5 16 12 1 . 3 . 1 18 8 4 . . . . Non-combat 16 | . . . . 1 1 3 . 3 . 3 . . . . . . 4 1 . . . . Combat 63 | . . . . . 2 3 1 2 16 9 1 . 3 . 1 18 4 3 . . . . Robot Hacks Applied 94 | . . . . 1 3 7 1 7 17 17 1 . 3 . 1 19 12 5 . . . . parse_system 16 | . . . . . . 2 1 . 1 2 . . 3 . . 1 4 2 . . . . generate_echo 1 | . . . . . . . . . . 1 . . . . . . . . . . . . drop_inventory 3 | . . . . . . 2 . 1 . . . . . . . . . . . . . . find_recycling 1 | . . . . . . . . . . 1 . . . . . . . . . . . . ignore_parts 1 | . . . . . . 1 . . . . . . . . . . . . . . . . purge_threat 9 | . . . . . . . . 2 . 4 . . . . . . 2 1 . . . . locate_traps 1 | . . . . . . . . . . . . . . . . . 1 . . . . . reprogram_traps 1 | . . . . . . . . . . 1 . . . . . . . . . . . . block_reporting 1 | . . . . . . . . . . . . . . . . . 1 . . . . . map_route 1 | . . . . . . . . 1 . . . . . . . . . . . . . . emergency_deploy 1 | . . . . . . . . . 1 . . . . . . . . . . . . . find_shortcuts 1 | . . . . . . 1 . . . . . . . . . . . . . . . . link_complan 1 | . . . . . . . . . . . . . . . . . 1 . . . . . disrupt_area 1 | . . . . . . . . . . 1 . . . . . . . . . . . . overload_power 1 | . . . . . . . . . 1 . . . . . . . . . . . . . amplify_resonance 4 | . . . . . . . . . . 1 . . . . . 2 1 . . . . . disable_weapons 3 | . . . . . . . . . 1 . . . . . . 2 . . . . . . overwrite_iff 20 | . . . . . 2 1 . 2 3 4 1 . . . . 4 2 1 . . . . formatsys_low 3 | . . . . 1 . . . 1 . . . . . . . . . 1 . . . . formatsys_high 24 | . . . . . 1 . . . 10 2 . . . . 1 10 . . . . . . Relay Couplers Released 57 | . . . . 3 . . . . 22 . . . . . . 27 . . . . 1 4 Machine Destruction 57 | . . . . 3 . . . . 22 . . . . . . 27 . . . . 1 4 Attached 28 | . . . . 1 1 . . 1 10 1 1 . . . . 10 2 . . . . 1 Fabnet Peak Effective % . | . . . . . . . . . . . . . . . . . . . . . . . Robots Rewired 25 | . . . . 4 . . . . 3 . 1 . . . . . . 15 . . . 2 Allies Hacked 2 | . . . . . . . . . . . . . . . . 2 . . . . . . Hacks Repelled . | . . . . . . . . . . . . . . . . . . . . . . . Allies | -11 -10 -10 -8 -8 -7 -7 -7 -5 -5 -5 -5 -5 -5 -4 -4 -4 -4 -4 -4 -4 -4 -4 -------- Run | Yrd Mat Sub Mat Gar Fac Sto Rec Fac Gar Fac Upp Upp Zhi Pro Fac Gar Fac Ext Cet Arc Hub Gar Total Allies 94 | . . 7 . 5 3 1 . 6 18 9 2 . . . 1 14 2 22 . . . 4 Largest Group 11 | . . 5 4 4 1 2 . 5 7 11 1 . . . 1 4 4 11 2 2 1 2 Highest-Rated Group 600 | . . 95 76 112 26 42 . 148 305 511 64 . . . 49 206 206 600 89 78 46 198 Highest-Rated Ally 159 | . . 19 19 31 26 26 . 30 62 142 64 . . . 49 58 142 159 51 46 46 99 Total Orders 8 | . . . . 1 1 . . . 1 4 . . . . 1 . . . . . . . STAY 1 | . . . . . . . . . 1 . . . . . . . . . . . . . ROAM 1 | . . . . . . . . . . 1 . . . . . . . . . . . . AID 2 | . . . . 1 1 . . . . . . . . . . . . . . . . . EXPLORE 4 | . . . . . . . . . . 3 . . . . 1 . . . . . . . Ally Attacks 507 | . . 8 29 8 3 4 . 21 69 103 3 . . . . 51 17 143 22 5 2 19 Total Damage 13242 | . . 85 407 63 34 61 . 370 1284 2768 85 . . . . 1694 737 4155 639 109 39 712 Kills 86 | . . 2 5 . . . . 5 9 18 1 . . . . 14 5 22 5 . . . Allies Corrupted 3 | . . . . . . . . 1 1 . . . . . . 1 . . . . . . Allies Melted . | . . . . . . . . . . . . . . . . . . . . . . . Intel | -11 -10 -10 -8 -8 -7 -7 -7 -5 -5 -5 -5 -5 -5 -4 -4 -4 -4 -4 -4 -4 -4 -4 ------- Run | Yrd Mat Sub Mat Gar Fac Sto Rec Fac Gar Fac Upp Upp Zhi Pro Fac Gar Fac Ext Cet Arc Hub Gar Active Infowar (turns) 9405 | . 418 42 457 . 830 643 418 677 2 196 1064 965 179 109 184 3 1455 796 1 38 928 . Sensors 8940 | . . 42 414 . 830 643 418 677 2 194 1064 965 179 107 184 3 1455 796 1 38 928 . Seismic 43 | . . . 43 . . . . . . . . . . . . . . . . . . . T.N.C. 418 | . 418 . . . . . . . . . . . . . . . . . . . . . Machine Analysis 2 | . . . . . . . . . . . . . . 2 . . . . . . . . Spoofing 2 | . . . . . . . . . . 2 . . . . . . . . . . . . Robot Analysis Total 5 | . 1 . . . . . . . . . . . 4 . . . . . . . . . Derelict Logs Recovered 6 | . . 3 . . . . . . . . 2 . . 1 . . . . . . . . Drone Launches 6 | . . . . . . . . . . 3 . . . . 3 . . . . . . . Drone Recoveries 1 | . . . . . . . . . . . . . . . 1 . . . . . . . Exploration | -11 -10 -10 -8 -8 -7 -7 -7 -5 -5 -5 -5 -5 -5 -4 -4 -4 -4 -4 -4 -4 -4 -4 ------------- Run | Yrd Mat Sub Mat Gar Fac Sto Rec Fac Gar Fac Upp Upp Zhi Pro Fac Gar Fac Ext Cet Arc Hub Gar Turns Passed 22834 | 40 1118 2172 462 930 833 643 1644 835 1046 1557 1064 965 182 1347 359 923 2073 1510 370 541 1898 322 Spaces Moved 16063 | 36 693 1458 295 491 539 378 851 817 1421 1587 664 766 142 927 270 865 1783 722 158 162 855 183 Core 2 | 2 . . . . . . . . . . . . . . . . . . . . . . Treads 5552 | . 179 . . . . . . 554 1421 1107 664 766 142 55 . 17 386 . . 116 145 . Legs 1910 | . . . 1 . . . 68 . . 334 . . . . . . 682 136 158 46 342 143 Wheels 5013 | 34 514 1458 294 491 539 378 778 14 . . . . . . . . 41 472 . . . . Hover 3110 | . . . . . . . . 32 . . . . . 872 270 848 566 114 . . 368 40 Flight 476 | . . . . . . . 5 217 . 146 . . . . . . 108 . . . . . Fastest Speed 49 | 50 80 119 116 111 116 116 115 49 49 49 119 119 119 119 63 51 68 110 183 159 95 61 Average Speed 106 | 88 121 130 117 116 123 123 136 74 49 66 119 119 119 138 109 75 85 149 183 185 159 94 Slowest Speed 270 | 100 160 200 270 131 155 131 190 147 49 138 119 119 119 153 153 126 110 217 183 201 236 95 Overloaded Moves 8 | . . . . . . . . . . . . . . . 8 . . . . . . . Propulsion Burnouts . | . . . . . . . . . . . . . . . . . . . . . . . Robots Hopped 2 | . . . . . . . . . . . . . . . . . 2 . . . . . Potential Cave-ins . | . . . . . . . . . . . . . . . . . . . . . . . Cave-ins Triggered . | . . . . . . . . . . . . . . . . . . . . . . . Exploration Rate (%) 61 | 4 95 72 34 78 15 62 99 23 98 43 74 82 60 97 9 97 60 87 65 77 58 24 Regions Visited 22 Branch Regions 11 Pre-discovered Areas 10 | . . 3 1 . . . 2 . . . . . 3 . . . 1 . . . . . Known Exits Taken 15 | . . . 1 . 1 1 . 1 . 1 1 1 1 1 1 . 1 1 1 1 1 . Unknown Exits Taken 4 | 1 1 1 . . . . 1 . . . . . . . . . . . . . . . Scrap Searched 18 | . . 9 . . . . . . . . 2 3 . 4 . . . . . . . . Spaces Dug 76 | . . . . . 3 . 1 . 2 3 . 1 . . 1 . 63 . . . 2 . Terrain Destroyed 851 | . 38 19 6 11 8 1 1 8 47 64 62 25 . 95 34 92 153 66 11 15 75 20 Melee . | . . . . . . . . . . . . . . . . . . . . . . . Projectile 360 | . . 2 6 . 8 1 1 8 41 13 7 1 . 2 5 11 92 54 11 15 75 7 AOE 491 | . 38 17 . 11 . . . . 6 51 55 24 . 93 29 81 61 12 . . . 13 Terrain Rammed . | . . . . . . . . . . . . . . . . . . . . . . . Walls Destroyed . | . . . . . . . . . . . . . . . . . . . . . . . Machines Disabled . | . . . . . . . . . . . . . . . . . . . . . . . Actions | -11 -10 -10 -8 -8 -7 -7 -7 -5 -5 -5 -5 -5 -5 -4 -4 -4 -4 -4 -4 -4 -4 -4 --------- Run | Yrd Mat Sub Mat Gar Fac Sto Rec Fac Gar Fac Upp Upp Zhi Pro Fac Gar Fac Ext Cet Arc Hub Gar Total 20444 | 41 864 1661 392 732 650 522 1328 1009 1707 2023 904 804 154 970 313 1074 2180 1053 214 365 1194 290 Wait 2224 | . 58 100 29 55 42 41 427 90 121 303 164 16 . 3 16 84 218 95 26 167 139 30 Move 16040 | 35 692 1457 294 490 538 377 850 817 1420 1586 663 765 141 926 269 864 1778 722 157 161 855 183 Hop 2 | . . . . . . . . . . . . . . . . . 2 . . . . . Pick Up 155 | . 26 17 11 18 5 8 4 12 5 9 2 2 1 2 1 12 10 1 3 1 2 3 Fast Attach 149 | 6 8 7 16 6 12 13 7 8 2 10 3 2 4 7 3 8 6 8 1 . 11 1 Attach 56 | . 2 7 5 7 4 . 1 5 1 6 . . . 1 1 3 3 3 2 . 2 3 Detach 18 | . 2 2 3 . . 2 2 1 . 1 . . . 1 . 1 . 3 . . . . Swap 150 | . 9 10 3 13 7 20 8 7 12 6 5 3 . 3 1 11 12 7 3 2 7 1 Drop 235 | . 11 23 21 15 12 26 20 17 8 19 3 3 4 7 3 15 11 7 1 1 6 2 Fire 1122 | . 56 38 10 63 30 35 9 52 99 82 29 13 4 20 19 73 140 90 21 33 167 39 Melee . | . . . . . . . . . . . . . . . . . . . . . . . Ram . | . . . . . . . . . . . . . . . . . . . . . . . Kick . | . . . . . . . . . . . . . . . . . . . . . . . Crush . | . . . . . . . . . . . . . . . . . . . . . . . Escape Stasis 36 | . . . . 24 . . . . . . . . . . . 2 . . . . 5 5 Rewire 257 | . . . . 41 . . . . 39 1 35 . . . . 1 . 117 . . . 23 Trap . | . . . . . . . . . . . . . . . . . . . . . . . Miscellaneous . | . . . . . . . . . . . . . . . . . . . . . . . Route ------- -11/Scrapyard -10/Materials (discovered 6 exits: [*Mat x3] / [*Min x2] / *Sub) -10/Subcaves (discovered 3 exits: *Mat x2 / Rec) -8/Materials (discovered 2 exits: *Fac / Gar) -8/Garrison (discovered 3 exits: *Fac x3) -7/Factory (discovered 4 exits: *Sto x2 / Low x2) -7/Storage -7/Recycling -5/Factory (discovered 2 exits: *Upp / Gar) -5/Garrison (discovered 3 exits: *Fac x3) -5/Factory (discovered 2 exits: *Fac / *Upp) -5/Upper Caves -5/Upper Caves (discovered 2 exits: *Fac / *Zhi) -5/Zhirov -4/Proximity Caves -4/Factory (discovered 5 exits: Upp x2 / Ext x2 / Gar) -4/Garrison (discovered 3 exits: *Fac x3) -4/Factory (discovered 8 exits: *Res x4 / *Upp x2 / *Ext x2) -4/Extension (discovered 3 exits: *Res x2 / *Cet) -4/Cetus (discovered 2 exits: *Res / *Arc) -4/Archives (discovered 3 exits: *Res / *Hub x2) -4/Hub_04(d) (discovered 4 exits: *Res x3 / Gar) -4/Garrison History --------- Turn | Location | Event 14 | -11/Scrapyard | Discovered new exit (range 15) 41 | -11/Scrapyard | Entered Materials 259 | -10/Materials | Discovered new exit (range 7) 317 | -10/Materials | Build established: Mutant 704 | -10/Materials | Discovered new exit (range 6) 784 | -10/Materials | Discovered new exit (range 16) 839 | -10/Materials | Discovered new exit (range 5) 1020 | -10/Materials | Discovered new exit (range 6) 1075 | -10/Materials | Discovered new exit (range 5) 1159 | -10/Materials | Entered Subcaves 1160 | -10/Subcaves | Approached by a straggling Scientist 1161 | -10/Subcaves | Ambushed by Subdwellers from Twisted Machinery 1164 | -10/Subcaves | Ambushed by Subdweller buried in earth 1204 | -10/Subcaves | Learned location of Storage (-7) 1219 | -10/Subcaves | Learned location of Zion (-7) 1254 | -10/Subcaves | Visited Clippyterm 1257 | -10/Subcaves | Learned Factory trap positions 1257 | -10/Subcaves | Learned Research security intel 2098 | -10/Subcaves | Visited 4L-MR0's lab 2115 | -10/Subcaves | Found Prototype Leg 2121 | -10/Subcaves | Identified Arachnoskeleton 2263 | -10/Subcaves | Identified exit to Recycling 2361 | -10/Subcaves | Core integrity fell below 50% 2400 | -10/Subcaves | Lost 4 parts (1p1n1u1w) 2413 | -10/Subcaves | Discovered new exit (range 9) 2426 | -10/Subcaves | Visited triangular shrine 2434 | -10/Subcaves | Found Prototype Device 2434 | -10/Subcaves | Identified V3-11A's Pendant 2439 | -10/Subcaves | Befriended Subdweller 2547 | -10/Subcaves | Discovered new exit (range 7) 2605 | -10/Subcaves | Disturbed a concealed Subdweller 2607 | -10/Subcaves | Disturbed a concealed Subdweller 2609 | -10/Subcaves | Befriended Subdweller 2609 | -10/Subcaves | Befriended Subdweller 2891 | -10/Subcaves | Shifting Twisted Machinery released Sub. Monowheel 2939 | -10/Subcaves | Befriended Subdweller 2944 | -10/Subcaves | Befriended Subdweller 2973 | -10/Subcaves | Shifting Twisted Machinery released Sub. Power Source 2973 | -10/Subcaves | Shifting Twisted Machinery released Sub. Laser 3115 | -10/Subcaves | Lost 3 allies 3145 | -10/Subcaves | Core integrity fell below 20% 3163 | -10/Subcaves | Met a Zionite searching for "candidates" 3174 | -10/Subcaves | Befriended Subdweller 3179 | -10/Subcaves | Befriended Subdweller 3220 | -10/Subcaves | A swath of the cavern ceiling suddenly collapsed 3331 | -10/Subcaves | Entered Materials 3331 | -8/Materials | Accompanied by 4 allies 3331 | -8/Materials | Evolved 4 slots: Propulsion x1, Utility x2, Weapon x1 3602 | -8/Materials | Discovered new exit (range 15) 3657 | -8/Materials | Attached Arachnoskeleton, gained temporary slots: Propulsion x3 3724 | -8/Materials | Lost 3 allies 3790 | -8/Materials | Identified exit to Garrison 3793 | -8/Materials | Entered Garrison 3831 | -8/Garrison | Triggered checkpoint 3951 | -8/Garrison | Garrison Relay disabled 3968 | -8/Garrison | Discovered new exit (range 35) 3968 | -8/Garrison | Discovered new exit (range 65) 3968 | -8/Garrison | Discovered new exit (range 77) 3997 | -8/Garrison | Installed Relay Interface Framework 4035 | -8/Garrison | Triggered checkpoint 4037 | -8/Garrison | Triggered checkpoint 4041 | -8/Garrison | Triggered checkpoint 4083 | -8/Garrison | Lost 4 allies 4131 | -8/Garrison | Destroyed 7 combat bots 4139 | -8/Garrison | Lost 7 parts (3n3u1w) 4513 | -8/Garrison | Build established: Bothacker-Tank 4723 | -8/Garrison | Entered Factory 4723 | -7/Factory | Accompanied by 1 ally 4723 | -7/Factory | Evolved 2 slots: Utility x2 4724 | -7/Factory | Loaded intel: 111 trap records 5119 | -7/Factory | Lost 3 allies 5464 | -7/Factory | Identified exit to Storage 5464 | -7/Factory | Identified exit to Lower Caves 5556 | -7/Factory | Entered Storage 5556 | -7/Storage | Accompanied by 1 ally 5632 | -7/Storage | Met 01-MTF 5642 | -7/Storage | Found Prototype Launcher 5642 | -7/Storage | Identified Rocket Array 5646 | -7/Storage | Found Rocket Array 6065 | -7/Storage | Used back door to open Recycling access 6199 | -7/Storage | Entered Recycling 6199 | -7/Recycling | Accompanied by 1 ally (01-MTF) 6564 | -7/Recycling | Discovered new exit (range 7) 6844 | -7/Recycling | Entered Scraplab 6887 | -7/Recycling | Found Prototype Device 6887 | -7/Recycling | Identified Scrap Engine 7170 | -7/Recycling | Build established: Bothacker-Mutant 7843 | -7/Recycling | Entered Factory 7843 | -5/Factory | Evolved 4 slots: Propulsion x2, Utility x1, Weapon x1 7921 | -5/Factory | Fabricated L-41 Fighter? 8143 | -5/Factory | Search patrols dispatched 8290 | -5/Factory | Discovered new exit (range 36) 8448 | -5/Factory | Build established: Bothacker-Tank 8678 | -5/Factory | Identified exit to Garrison 8678 | -5/Factory | Entered Garrison 8678 | -5/Garrison | Accompanied by 1 ally 8691 | -5/Garrison | Garrison Relay disabled 8700 | -5/Garrison | Triggered checkpoint 8719 | -5/Garrison | Garrison Relay disabled 8750 | -5/Garrison | Triggered checkpoint 8761 | -5/Garrison | Triggered checkpoint 8765 | -5/Garrison | Triggered checkpoint 8852 | -5/Garrison | Lost 3 allies 8867 | -5/Garrison | Build established: Bothacker-Construct 8902 | -5/Garrison | Triggered checkpoint 8991 | -5/Garrison | Garrison Relay disabled 9002 | -5/Garrison | Discovered new exit (range 12) 9062 | -5/Garrison | Triggered checkpoint 9132 | -5/Garrison | Garrison Relay disabled 9307 | -5/Garrison | Discovered new exit (range 12) 9332 | -5/Garrison | Triggered checkpoint 9365 | -5/Garrison | Triggered checkpoint 9390 | -5/Garrison | Garrison Relay disabled 9413 | -5/Garrison | Discovered new exit (range 8) 9546 | -5/Garrison | Expanded RIF knowledge: Structural Interface 9593 | -5/Garrison | Found embedded Infiltrators 9724 | -5/Garrison | Entered Factory 9724 | -5/Factory | Accompanied by 7 allies 9764 | -5/Factory | Repaired Sub. Shrapnel Launcher 9816 | -5/Factory | Repaired Imp. Medium Armor Plating 10110 | -5/Factory | Fabricated L-41 Fighter? 10624 | -5/Factory | First assault squad dispatched 10846 | -5/Factory | Lost 7 allies 11233 | -5/Factory | Discovered new exit (range 15) 11255 | -5/Factory | Identified exit to Upper Caves 11264 | -5/Factory | Discovered new exit (range 5) 11268 | -5/Factory | Identified exit to Factory 11281 | -5/Factory | Entered Upper Caves 11320 | -5/Upper Caves | Acquired the password to a Derelict Tinkerer's latest research 11329 | -5/Upper Caves | Found Prototype Special Weapon 11390 | -5/Upper Caves | Learned Factory interactive machine intel 11607 | -5/Upper Caves | Attracted the attention of an 0b10 outpost 11967 | -5/Upper Caves | Attracted the attention of an 0b10 checkpoint 12065 | -5/Upper Caves | Caught by Unaware searching for contraband prototypes 12328 | -5/Upper Caves | Discovered new exit (range 15) 12343 | -5/Upper Caves | Identified exit to Upper Caves 12345 | -5/Upper Caves | Entered another Upper Caves area 12429 | -5/Upper Caves | Entered an active Warlord outpost 12447 | -5/Upper Caves | Learned Research stockpile data 12447 | -5/Upper Caves | Learned location of 1 exit from Research 12447 | -5/Upper Caves | Learned Armory security intel 12447 | -5/Upper Caves | Learned Factory garrison access intel 12664 | -5/Upper Caves | Attracted the attention of an 0b10 checkpoint 12908 | -5/Upper Caves | Attracted the attention of an 0b10 base 12937 | -5/Upper Caves | Destroyed 7 combat bots 13103 | -5/Upper Caves | Discovered new exit (range 5) 13108 | -5/Upper Caves | Identified exit to Zhirov 13310 | -5/Upper Caves | Entered Zhirov 13310 | -5/Zhirov | Discovered new exit (range 3) 13332 | -5/Zhirov | Met Zhirov 13363 | -5/Zhirov | Learned location of Quarantine (-2) 13363 | -5/Zhirov | Learned location of Testing (-3) 13363 | -5/Zhirov | Learned location of Command (-1) 13370 | -5/Zhirov | Zhirov requested help retrieving the SGEMP Prototype 13389 | -5/Zhirov | Found Alien Artifact 13389 | -5/Zhirov | Identified Integrated Reactor 13389 | -5/Zhirov | Installed Integrated Reactor, increased core energy generation (+10) 13406 | -5/Zhirov | Found Alien Artifact 13490 | -5/Zhirov | Identified exit to Proximity Caves 13492 | -5/Zhirov | Entered Proximity Caves 14125 | -4/Proximity Caves | Learned 4 Research zone layouts 14405 | -4/Proximity Caves | Found Unknown Protection 14405 | -4/Proximity Caves | Identified Imp. Powered Armor 14839 | -4/Proximity Caves | Entered Factory 14839 | -4/Factory | Evolved 2 slots: Propulsion x1, Utility x1 14840 | -4/Factory | Loaded intel: 56 interactive machine locations 14841 | -4/Factory | Loaded intel: 4 garrison access locations 14933 | -4/Factory | Identified exit to Upper Caves 14933 | -4/Factory | Identified exit to Extension 15039 | -4/Factory | Spotted B-86 Titan 15185 | -4/Factory | Fabricated Adv. Datajack? 15188 | -4/Factory | Identified exit to Garrison 15198 | -4/Factory | Entered Garrison 15199 | -4/Garrison | Identified exit to Factory 15226 | -4/Garrison | Expanded RIF knowledge: Coupler Efficiency 15267 | -4/Garrison | Garrison Relay disabled 15371 | -4/Garrison | Triggered checkpoint 15375 | -4/Garrison | Spotted B-86 Titan 15379 | -4/Garrison | Destroyed B-86 Titan 15380 | -4/Garrison | Triggered checkpoint 15389 | -4/Garrison | Triggered checkpoint 15427 | -4/Garrison | Found Hvy. Reflective Plating 15441 | -4/Garrison | Destroyed 9 combat bots 15449 | -4/Garrison | Lost 5 allies 15470 | -4/Garrison | Triggered checkpoint 15475 | -4/Garrison | Garrison Relay disabled 15520 | -4/Garrison | Lost 4 allies 15527 | -4/Garrison | Discovered exit to Factory (range 8) 15553 | -4/Garrison | P-70 Sage assimilated allied Sentinel 7c 15706 | -4/Garrison | Triggered checkpoint 15747 | -4/Garrison | Triggered checkpoint 15766 | -4/Garrison | Garrison Relay disabled 15953 | -4/Garrison | Expanded RIF knowledge: Robot Detection 15978 | -4/Garrison | Triggered checkpoint 16000 | -4/Garrison | Discovered exit to Factory (range 73) 16000 | -4/Garrison | Discovered exit to Factory (range 59) 16000 | -4/Garrison | Discovered exit to Factory (range 26) 16008 | -4/Garrison | Garrison Relay disabled 16066 | -4/Garrison | Garrison Relay disabled 16071 | -4/Garrison | Garrison Relay disabled 16121 | -4/Garrison | Entered Factory 16121 | -4/Factory | Accompanied by 4 allies 16145 | -4/Factory | Discovered new exit (range 7) 16149 | -4/Factory | Identified exit to Research 16184 | -4/Factory | Repaired Weapon Mount? 16318 | -4/Factory | Build established: Botlord-Construct 16339 | -4/Factory | Discovered exit to Research (range 8) 16550 | -4/Factory | Discovered exit to Research (range 7) 16621 | -4/Factory | First assault squad dispatched 17020 | -4/Factory | Garrison activated, responded to threat 17041 | -4/Factory | Spotted B-86 Titan 17099 | -4/Factory | Found Prototype Launcher 17099 | -4/Factory | Identified Mni. Smartbomb Launcher 17107 | -4/Factory | Found Mni. Smartbomb Launcher 17336 | -4/Factory | Discovered exit to Research (range 16) 17382 | -4/Factory | Fabricated Hvy. Flak Cannon? 17576 | -4/Factory | Build established: Bothacker-Construct 17649 | -4/Factory | Destroyed 12 combat bots 17658 | -4/Factory | Lost 3 parts (3u) 18194 | -4/Factory | Entered Extension 18342 | -4/Extension | Energy Cycler disabled 18342 | -4/Extension | Rescued a captive Derelict 18342 | -4/Extension | Rescued a captive Derelict 18342 | -4/Extension | Rescued a captive Derelict 18343 | -4/Extension | Rescued a captive Derelict 18343 | -4/Extension | Rescued a captive Derelict 18343 | -4/Extension | Rescued a captive Derelict 18346 | -4/Extension | Rescued a captive Derelict 18347 | -4/Extension | Rescued A7 18347 | -4/Extension | Rescued a captive Derelict 18353 | -4/Extension | Rescued a captive Derelict 18917 | -4/Extension | Destroyed B-86 Titan 18932 | -4/Extension | Spotted B-86 Titan 18944 | -4/Extension | First assault squad dispatched 18947 | -4/Extension | Destroyed B-86 Titan 18949 | -4/Extension | Discovered exit to Research (range 14) 19078 | -4/Extension | Lost 3 allies 19176 | -4/Extension | Extracted ID and sensor layout for unrecognized location from A7's data core 19206 | -4/Extension | Lost 4 allies 19686 | -4/Extension | Discovered exit to Research (range 10) 19688 | -4/Extension | Discovered new exit (range 6) 19696 | -4/Extension | P-70 Sage assimilated allied CP-BCI(h) 19702 | -4/Extension | Identified exit to Cetus 19704 | -4/Extension | Entered Cetus 19704 | -4/Cetus | Accompanied by 2 allies 19731 | -4/Cetus | Spotted Cetus Guard 19731 | -4/Cetus | Destroyed Cetus Guard 19733 | -4/Cetus | Spotted Cetus Guard 19735 | -4/Cetus | Destroyed Cetus Guard 19741 | -4/Cetus | Spotted Cetus Guard 19742 | -4/Cetus | Spotted Cetus Guard 19752 | -4/Cetus | Destroyed Cetus Guard 19761 | -4/Cetus | Allies destroyed Cetus Guard 19867 | -4/Cetus | Discovered new exit (range 15) 19896 | -4/Cetus | Spotted Cetus Guard 19902 | -4/Cetus | Destroyed Cetus Guard 19906 | -4/Cetus | Destroyed Cetus Guard 19926 | -4/Cetus | Spotted Cetus Guard 19938 | -4/Cetus | Allies destroyed Cetus Guard 19938 | -4/Cetus | Discovered exit to Research (range 16) 19949 | -4/Cetus | Met Revision 17 20072 | -4/Cetus | Identified exit to Archives 20074 | -4/Cetus | Entered Archives 20074 | -4/Archives | Accompanied by 2 allies 20123 | -4/Archives | Core integrity fell below 50% 20156 | -4/Archives | Unable to access archive contents 20162 | -4/Archives | Discovered new exit (range 16) 20195 | -4/Archives | Discovered new exit (range 15) 20274 | -4/Archives | Discovered exit to Research (range 15) 20609 | -4/Archives | Identified exit to Hub_04(d) 20615 | -4/Archives | Entered Hub_04(d) 20615 | -4/Hub_04(d) | Accompanied by 1 ally 20632 | -4/Hub_04(d) | Spotted B-86 Titan 20664 | -4/Hub_04(d) | Destroyed B-86 Titan 20982 | -4/Hub_04(d) | Discovered exit to Research (range 10) 21400 | -4/Hub_04(d) | Discovered exit to Research (range 16) 21615 | -4/Hub_04(d) | First assault squad dispatched 22059 | -4/Hub_04(d) | Discovered exit to Research (range 13) 22376 | -4/Hub_04(d) | Network Hub disabled 22405 | -4/Hub_04(d) | Spotted Lightning 22410 | -4/Hub_04(d) | Spotted Lightning 22412 | -4/Hub_04(d) | Spotted Lightning 22424 | -4/Hub_04(d) | Core integrity fell below 20% 22430 | -4/Hub_04(d) | System corruption reached 10% 22498 | -4/Hub_04(d) | Lost 3 parts (1n2u) 22513 | -4/Hub_04(d) | Identified exit to Garrison 22513 | -4/Hub_04(d) | Entered Garrison 22525 | -4/Garrison | Found embedded Infiltrators 22556 | -4/Garrison | Spotted Striker 22556 | -4/Garrison | Spotted Striker 22584 | -4/Garrison | Destroyed Striker 22608 | -4/Garrison | Destroyed Striker 22662 | -4/Garrison | Garrison Relay disabled 22672 | -4/Garrison | Expanded RIF knowledge: Command Fork 22732 | -4/Garrison | Rewired Striker 22749 | -4/Garrison | Rewired Striker 22802 | -4/Garrison | Spotted B-86 Titan 22817 | -4/Garrison | Triggered checkpoint 22817 | -4/Garrison | Triggered checkpoint 22835 | -4/Garrison | Destroyed by X-72 Disruptor with Arc Projector Last Messages --------------- 22822_ Striker knocked back. 22822_ Slug penetrates Striker. 22822_ Striker destroyed. 22822_ Slug penetrates B-60 Warrior. 22823_ Destroyed Hvy. Reflective Plating. 22823_ B-60 Warrior destroyed. 22826_ B-86 Titan activates siege mode. 22826_ P-70 Sage resets B-86 Titan, system corruption cleaned. 22828_ Acquired 2 matter. 22828_ Acquired 6 matter. 22830_ P-70 Sage resets P-70 Sage, system corruption cleaned. 22831_ Destroyed Hpw. Shock Rifle. 22831_ Power Amplifier destroyed. 22833_ System corrupted: Energy discharge (-48). 22834_ P-70 Sage destroyed. 22834_ G-67 Veteran destroyed. 22834_ P-70 Sage destroyed. 22834_ G-67 Veteran destroyed. Map ----- +----------------------------------------------------+ | ?????????????????????????????????????????????????? | | ?????????????????????????????????????????????????? | | ?????????????????????????????????????????????????? | | ?????????????????????????????????????????????????? | | ?????????????????????????????????????????????????? | | ?????????????????????????????????????????????????? | | ?????????????????????????????????????????????????? | | ?????????????????????????????????????????????????? | | ?????????????????????????????????????????????????? | | ?????????????????????????????????????????????????? | | ?????????????????????????????????????????????????? | | ??????????????######?????????????????????????????? | | ##????????????# #?????????????????????????????? | | !!#####???????# #??????####???????????????????? | | #???????# #??????# #???????????????????? | | !!### #?????##### #??????# #???????????????????? | | ##??# #???## #??# #??????# #???????????????????? | | ????#%###?# ???# #??????# #???????????????????? | | ????#%#[### #???# #??????# #???????????????????? | | ?####!!""##+##### ##?????# #???????????????????? | | ?# %%!% !!%! "######## #???????????????????? | | ?# ##+%###%+##### + #???????????????????? | | ?# "%[%#?## ##??# ####???????????????????? | | ?# #=%# #?# "#??##+##### #??????????????????????? | | ?# #! ##### ##???# #???# #??????????????????????? | | ## + #????# #???# @#??????????????????????? | | ########+#????# #??## #??????????????????????? | | #??##### ###### #??# #??????????????????????? | | #??#"""" """"## ## p ??????????????????????? | | ## #??#" ^ "## ### %p #?????????????????????? | | ?# ####"""" "" "## #?# % #?????????????????????? | | ## #"##"""" """ ## #?# =% ????????????????? | | "##" "#? ?? %! ???????????? | | ## ##"""" """"#?#?## % * ??????????? | | ?# !"############????# = # ##??????????? | | ?# #"#???????????????## BB ? #???????????? | | ?#####???????????????? BB ????????????? | | ?????????????????????? x "???????????? | | ?????????????????????? ????????????? | | ????????????????????? ????????????? | | ?????????????????????## ## ## ?????????????? | | ??????????????????????# #? #?? ?????????????? | | ??????????????????????# ? ????????????????? | | ??????????????????????? ?? ?????????????????? | | ??????????????????????? ??????????????????????? | | ???????????????????????# #??????????????????????? | | ?????????????????????????????????????????????????? | | ?????????????????????????????????????????????????? | | ?????????????????????????????????????????????????? | | ?????????????????????????????????????????????????? | +----------------------------------------------------+ Best States ------------- Heat Dissipation 74 Coolant Potential 80 Energy Generation 37 Energy Capacity 403 Matter Stores 300 Matter Capacity 300 Sight Range 16 Robot Scan Range 18 Terrain Scan Density 10 Power Amplification 20 Corruption Containment 12 Armor Coverage 825 Resistance: TH 25 Resistance: EM 20 Weapon Cycling 25 Evasion (%) 60 Targeting Accuracy 20 Recoil Reduction 6 Matter Filtering 50 Offensive Hacking 12 Defensive Hacking 10 Relay Coupler Types 4 Relay Coupler Value 111 Authchip Count 1 Item Schematics ----------------- Hyp. Coil Gun | -7/Recycling | Hacked Antimatter Reactor | -5/Factory | Hacked Assault Drone Bay | -5/Zhirov | Free Exp. Heat Sink | -5/Zhirov | Free Exp. Optical Array | -5/Zhirov | Free Imp. Arc Thrower | -5/Zhirov | Free Hvy. Flak Cannon | -4/Factory | Hacked Hyp. Railgun | -4/Factory | Hacked Enh. Quantum Rifle | -4/Extension | Hacked Enh. Hardcell Cannon | -4/Extension | Hacked Adv. Cryofiber Web | -4/Extension | Hacked Adv. Corruption Screen | -4/Extension | Hacked Robot Schematics ------------------ L-41 Fighter | -7/Storage | Hacked Fabricated ------------ L-41 Fighter | x3 | -5/Factory | Authchip L-41 Fighter | x3 | -5/Factory Adv. Datajack | x2 | -4/Factory | Preloaded Hvy. Flak Cannon | x2 | -4/Factory Repaired ---------- Sub. Shrapnel Launcher | 36% | -5/Factory Imp. Medium Armor Plating | 69% | -5/Factory Weapon Mount | 46% | -4/Factory Studied --------- Com. Wheel | -5/Factory | Hacked Imp. Remote Datajack | -5/Factory | Hacked Alien Tech Used ----------------- Integrated Reactor Achievements -------------- Bigger Is Better Pwned Zeroed Repercussions Challenges ------------ None Game ------ Seed CompactBattleRipper Manual? 0 Play Time 05:02:08 Cumulative 348.0 hours Start 2025.12.26 @ 19:17:25 End 2025.12.28 @ 17:54:15 Sessions 7 Manual Loads 0 Difficulty Rogue Special Mode None Game No. 124 Rogue 124 Adventurer 0 Explorer 0 Win Type - Total 6 Types 4/0/0/0/0/0/0/1/0/1 Lore% 78 Gallery% 75 Achievement% 64 Wizard Run 0 Options --------- Layout 1 ASCII 0 Keyboard 0 Movement Mouse Keybinds 0 Fullscreen 2 Font 32/SmallcapsGlow Map View 50x35 Zoom Use 0% Tactical HUD 1 Map Filters NONE Filters NONE Steam 1 RUN: 867594a1-7ed8-424f-bcc6-604ec5b1753c